Workbook

Sheet Tarif
C2: Tarif assurance individuelle accidents
IN396: Tarif de base
IO398: Garanties
IN399: Classe | IO399: Décès | IP399: I.P.P | IQ399: I.T.T* (DA) | IR399: Frais médicaux** (DA)
IN400: 1 | IO400: =1.4/1000 -> 0.140% | IP400: =1.5/1000 -> 0.150% | IQ400: 4 | IR400: 45
IN401: 2 | IO401: =1.65/1000 -> 0.165% | IP401: =1.75/1000 -> 0.175% | IQ401: 6 | IR401: 65
IN402: 3 | IO402: =2.25/1000 -> 0.225% | IP402: =2.5/1000 -> 0.250% | IQ402: 9 | IR402: 90
IN403: 4 | IO403: =2.7/1000 -> 0.270% | IP403: =2.85/1000 -> 0.285% | IQ403: 12 | IR403: 120
IN404: 5 | IO404: =3.5/1000 -> 0.350% | IP404: =3.75/1000 -> 0.375% | IQ404: 15 | IR404: 150
IN406: * par dinar garanti à compter du 8ème jour.
IN407: ** jusqu'à concurrence de 1500 DA.
IN410: Surprimes
IO412: Décès | IP412: I.P.P | IQ412: I.T.T | IR412: Frais médicaux | IS412: Observation
IO413: ‰ du capital | IP413: % de la prime
IM414: (a) | IN414: Sport | IO414: =0.6/1000 -> 0.0600% | IP414: 60% | IQ414: Néant | IS414: Les surprimes (a) et © ne se cumulent pas. En cas de cumul prendre la surprime © seulement.
IM415: (b) | IN415: Aviation | IO415: =0.5/1000 -> 0.0500% | IP415: 0%
IM416: © | IN416: Moto > 50 cm³ | IO416: =0.75/1000 -> 0.0750% | IP416: 75%
IN419: Si l'âge de l'assuré varie au jour de la souscription :
IN421: Entre 50 et 55 ans | IO421: majoration de | IP421: 20% | IQ421: de la prime nette
IN422: Entre 55 et 60 ans | IO422: majoration de | IP422: 40% | IQ422: de la prime nette

Sheet Calcul
B2: STAEM
B3: Classe : | C3: Tarification individuelle accidents
B4: 1 | D4: Capital assuré | E4: Taux | F4: Prime
B5: Garanties de Base | C5: Décès | D5: 200,000 | E5: =IF(B4=Tarif!IN400,Tarif!IO400,IF(B4=Tarif!IN401,Tarif!IO401,IF(B4=Tarif!IN402,Tarif!IO402,IF(B4=Tarif!IN403,Tarif!IO403,Tarif!IO404)))) -> 0.140% | F5: =E5*D5 -> 280
C6: IPP | D6: 10,000 | E6: =IF(B4=Tarif!IN400,Tarif!IP400,IF(B4=Tarif!IN401,Tarif!IP401,IF(B4=Tarif!IN402,Tarif!IP402,IF(B4=Tarif!IN403,Tarif!IP403,Tarif!IP404)))) -> 0.150% | F6: =E6*D5 -> 300
A7: OUI | C7: FMP | D7: 100,000 | E7: =IF(B4=Tarif!IN400,Tarif!IR400,IF(B4=Tarif!IN401,Tarif!IR401,IF(B4=Tarif!IN402,Tarif!IR402,IF(B4=Tarif!IN403,Tarif!IR403,Tarif!IR404)))) -> 45 | F7: =E7*D7/1500 -> 3,000
A8: NON | C8: PRIME BASE : | F8: =SUM(F5:F7) -> 3,580.00
A9: 3 | B9: Surprime Décès (/ capital) | C9: Sport | E9: =IF(A9=2,Tarif!IO414,0) -> 0.000% | F9: =$D$5*E9 -> 0
A10: 3 | C10: Aviation | E10: =IF(A10=2,Tarif!IO415,0) -> 0.000% | F10: =$D$5*E10 -> 0
A11: 3 | C11: Moto > 50 cm³ | E11: =IF(A11=2,Tarif!IO416,0) -> 0.000% | F11: =$D$5*E11 -> 0
C12: Prime annuelle : | F12: =SUM(F8:F11) -> 3,580.00
A13: 3 | B13: Surprime IPP (/ prime) | C13: Sport | E13: =IF(A13=2,Tarif!IP414,0) -> 0% | F13: =$F$6*E13 -> 0
C14: Aviation
A15: 3 | C15: Moto > 50 cm³ | E15: =IF(A15=2,Tarif!IP416,0) -> 0% | F15: =$F$6*E15 -> 0
C16: Prime annuelle : | F16: =SUM(F12:F15) -> 3,580.00
B17: Surprime Âge (/ prime) | C17: Entre 50 et 55 ans | D17: 20% | E17: 0% | F17: =F16*E17 -> 0
C18: Entre 56 et 65 ans | D18: 40%
B19: Prime Nette | F19: =F16+F17 -> 3,580.00
B21: PRIME NETTE PAR GARANTIE | E21: PRIME ANNUELLE | F21: PRIME TEMPORAIRE
B22: Durée d'assurance | C22: annuelle | D22: DC | E22: =(F5+F9+F10+F11)*(1+$E$17) -> 280.00 | F22: =E22*$C$23 -> 280.00
B23: % de prime : | C23: 100% | D23: IPP | E23: =(F6+F13+F15)*(1+$E$17) -> 300.00 | F23: =E23*$C$23 -> 300.00
D24: FMP | E24: =F7*(1+$E$17) -> 3,000.00 | F24: 3,000.00
B25: PRIME NETTE | E25: =SUM(E22:E24) -> 3,580.00 | F25: =SUM(F22:F24) -> 3,580.00

Sheet STAEM
B2: Offre Assurance Individuelle Accidents | E2: STAEM
B4: Tableau des conditions de couverture et tarifaires
B6: Contractante : | C6: Société de Tabac Algéro-Emaratie
B7: Activité : | C7: Production
B8: Effectif assuré : | C8: 900
B9: Age limite | C9: 65 ans
B10: Durée | C10: Annuelle
B12: Garanties | C12: Capitaux garantis
B13: Décès Accidentel: | C13: 1,000,000 DA
B14: IPP / IPT | C14: 1,000,000 DA
B15: FMP | C15: 0 DA
B16: Prime nette annuelle | C16: 4,750 DA

Sheet Feuil1

Sheet Calcul (2)
B2: STAEM
B3: Classe : | C3: Tarification individuelle accidents
B4: 5 | D4: Capital assuré | E4: Taux | F4: Prime
B5: Garanties de Base | C5: Décès | D5: 2,000,000 | E5: =VLOOKUP($B$4,Classe,2,0) -> 0.350% | F5: =E5*D5 -> 7,000
C6: IPP | D6: 1,000,000 | E6: =VLOOKUP($B$4,Classe,3,0) -> 0.375% | F6: =E6*D5 -> 7,500
C7: FMP | D7: 0 | E7: =VLOOKUP($B$4,Classe,5,0) -> 150 | F7: =E7*D7/1500 -> 0
C8: PRIME BASE : | F8: =SUM(F5:F7) -> 14,500.00
